[Event "Runavik Open 2018"]
[Site "Runavik"]
[Date "2018.11.14"]
[Round "4"]
[White "Jacobsen, Markus"]
[Black "Berg, Margar M."]
[Result "0-1"]
[ECO "B95"]
[WhiteElo "1076"]
[BlackElo "1852"]
[Annotator "NA RC"]
[PlyCount "82"]
[EventDate "2018.11.12"]
[EventType "swiss"]
[EventCountry "FAI"]
[SourceTitle "playchess.com"]
[Source "ChessBase"]
[SourceQuality "1"]
[TimeControl "40/5400+30:900+30"]

1. e4 c5 2. Nf3 d6 3. d4 cxd4 4. Nxd4 Nf6 5. Nc3 a6 6. Bg5 e6 7. Bc4 Be7 8. O-O Nxe4 9. Nxe4 Bxg5 10. Nxg5 Qxg5 11. Nf3 Qc5 12. Bd3 Nd7 13. Re1 Nf6 14. h3 O-O 15. c3 b5 16. Qc2 Bb7 17. b4 Qh5 18. Be2 Rac8 19. Nd4 Qg6 20. Qxg6 hxg6 21. Rac1 Bd5 22. a4 Bc4 23. Bxc4 bxc4 24. b5 axb5 25. Nxb5 Rc6 26. Red1 d5 27. Ra1 Ra8 28. Rdb1 Ne4 29. Rb2 f5 30. Rba2 Ra5 31. f3 Nc5 32. Nd4 Rb6 33. g4 Kf7 34. Kg2 Rba6 35. Kg3 Rxa4 36. Rxa4 Rxa4 37. Rxa4 Nxa4 38. h4 Nxc3 39. h5 gxh5 40. gxf5 e5 41. Nc6 Kf6 0-1

[Event "Runavik Open 2018"]
[Site "Runavik"]
[Date "2018.11.14"]
[Round "4"]
[White "Petersen, Elias"]
[Black "Fjallheim, Benjamin Reinert"]
[Result "0-1"]
[ECO "C50"]
[WhiteElo "1045"]
[BlackElo "1340"]
[Annotator "NA RC"]
[PlyCount "94"]
[EventDate "2018.11.12"]
[EventType "swiss"]
[EventCountry "FAI"]
[SourceTitle "playchess.com"]
[Source "ChessBase"]
[SourceQuality "1"]
[TimeControl "40/5400+30:900+30"]

1. e4 e5 2. Nf3 Nc6 3. Bc4 Bc5 4. O-O d6 5. h3 Nf6 6. Re1 Be6 7. Bxe6 fxe6 8. c3 O-O 9. d4 exd4 10. cxd4 Bb4 11. Nc3 e5 12. dxe5 dxe5 13. Bd2 Qe7 14. a3 Bxc3 15. Bxc3 Kh8 16. Rc1 Nd7 17. Kh1 Rad8 18. b4 Nb6 19. Qc2 Rf7 20. Qa2 Rd7 21. Qa1 Nc4 22. b5 N6a5 23. Bxa5 Nxa5 24. Nxe5 Nb3 25. Nxf7+ Qxf7 26. Qb2 Nxc1 27. Rxc1 Qf4 28. g3 Qxe4+ 29. Kh2 h6 30. Qc3 Qe2 31. Qc5 Rf7 32. Kg1 b6 33. Qd4 Qxb5 34. Re1 Qf5 35. g4 Qf3 36. a4 c5 37. Qd2 Qxh3 38. Re8+ Kh7 39. Qc2+ g6 40. Qc4 Qf3 41. Qa2 Qxg4+ 42. Kf1 Qd7 43. Rc8 Qd1+ 44. Kg2 Qg4+ 45. Kf1 Kg7 46. Qb2+ Qd4 47. Qe2 h5 0-1

[Event "Runavik Open 2018"]
[Site "Runavik"]
[Date "2018.11.15"]
[Round "5"]
[White "Fjallheim, Leif Reinert"]
[Black "Hojgaard, Brandur"]
[Result "1-0"]
[ECO "A05"]
[WhiteElo "1919"]
[BlackElo "1708"]
[Annotator "NA RC"]
[PlyCount "103"]
[EventDate "2018.11.12"]
[EventType "swiss"]
[EventCountry "FAI"]
[SourceTitle "playchess.com"]
[Source "ChessBase"]
[SourceQuality "1"]
[TimeControl "40/5400+30:900+30"]

{[%evp 17,101,-25,-26,-43,32767,32767,0,-11,-25,-16,-20,-41,-29,-19,32767,-65,-63,-75,-56,-50,68,58,96,0,0,0,21,9,25,9,54,43,52,52,53,58,54,37,100,125,134,82,83,88,105,96,165,94,97,32767,32767,32767,32767,32767,32767,32767,32767,32767,157,164,181,185,199,142,159,165,201,183,181,224,242,249,202,181,217,231,250,231,234,227,261,276,281,330,32767,357]} 1. Nf3 {[%emt 0:03:24]} Nf6 {[%emt 0:00:31]} 2. g3 {[%emt 0:00:13]} d5 {[%emt 0:00:39]} 3. d3 {[%emt 0:01:00]} Bf5 {[%emt 0:03:06] A06: Réti Opening:1 Nf3 d5} (3... g6 4. Bg2 Bg7 5. O-O O-O 6. Nc3 c5 7. e4 d4 8. Ne2 Nc6 9. Nd2 e5 10. h3 Ne8 11. f4 Nd6 12. g4 f5 13. exf5 gxf5 14. g5 Bd7 {1-0 (37) Nakamura,H (2777)-Hou,Y (2658) chess.com INT 2018}) 4. c4 {[%emt 0:05:19]} e6 {[%emt 0:01:22]} 5. a3 {[%emt 0:02:33]} c6 {[%emt 0:03:51]} 6. b3 {[%emt 0:03:13]} Bd6 {[%emt 0:08:01]} 7. Bb2 {[%emt 0:01:35]} Nbd7 {[%emt 0:01:01]} 8. Nc3 $146 {[%emt 0:03:21]} ({Predecessor:} 8. Bg2 h6 9. O-O O-O 10. Nbd2 a5 11. Qe1 Qe7 {½-½ (20) Perich,S (1931)-Webel,J (1776) Arco 2011}) 8... O-O {[%emt 0:07:38]} 9. Nh4 {[%emt 0:01:29]} Bg4 {[%emt 0:06:22]} 10. Bg2 {[%emt 0:03:08]} Qe7 {[%emt 0:04:10]} 11. h3 {[%emt 0:02:32]} Bh5 {[%emt 0:01:53]} 12. Qc2 {[%emt 0:02:48]} Rac8 {[%emt 0:03:05]} 13. Nd1 {[%emt 0:06:40]} Be5 {[%emt 0:09:34]} 14. d4 {[%emt 0:12:58]} Bb8 {[%emt 0:03:28]} 15. O-O {[%emt 0:02:31]} c5 {[%emt 0:05:52]} 16. dxc5 {[%emt 0:08:14]} Qxc5 {[%emt 0:04:25]} 17. Ne3 {[%emt 0:07:19]} Bxg3 {[%emt 0:15:01]} 18. b4 {[%emt 0:04:44]} Qc7 {[%emt 0:03:13]} ({Black should play} 18... Qb6 $15 19. c5 Bxh4 20. cxb6 Rxc2 21. Nxc2 Nxb6) 19. fxg3 {[%emt 0:03:36]} Qxg3 {[%emt 0:01:14] [#]} 20. Nf3 {[%emt 0:00:57]} (20. Nef5 $1 $16 {[%mdl 512]} exf5 21. Nxf5 Rxc4 22. Qd2) 20... dxc4 {[%emt 0:03:51]} 21. Bc3 {[%emt 0:06:40]} Bg6 {[%emt 0:01:09]} 22. Qc1 {[%emt 0:00:40]} Ne4 {[%emt 0:01:59]} 23. Be1 {[%emt 0:01:42]} Qc7 {[%emt 0:02:10]} 24. Nh4 $1 {[%emt 0:05:20]} Ng3 {[%emt 0:03:03]} 25. Bxg3 $1 {[%emt 0:04:20]} Qxg3 {[%emt 0:00:16]} 26. Nxg6 {[%emt 0:02:25]} Qxg6 {[%emt 0:01:06]} 27. Nd1 {[%emt 0:02:04]} ({Much worse is} 27. Nxc4 Nb6 $15) 27... Rc7 {[%emt 0:03:16]} 28. Nc3 {[%emt 0:00:07]} Nf6 {[%emt 0:01:02]} 29. Qe1 {[%emt 0:01:08]} ({Better is} 29. Qf4 Rfc8 30. Rad1) 29... Nd5 {[%emt 0:00:35]} 30. Rf3 {[%emt 0:00:24]} Nxc3 {[%emt 0:00:40]} 31. Qxc3 {[%emt 0:00:19]} Rd8 {[%emt 0:00:53]} (31... Qh6 $16 {was worth a try.}) 32. Rg3 {[%emt 0:00:43]} Qh6 {[%emt 0:00:17]} 33. a4 {[%emt 0:01:08]} g6 {[%emt 0:00:44]} 34. Rc1 {[%emt 0:00:46]} Qg7 {[%emt 0:00:31]} 35. Qxg7+ {[%emt 0:00:35]} Kxg7 {[%emt 0:00:02]} 36. Rgc3 {[%emt 0:00:22]} Rd4 {[%emt 0:00:28]} 37. e3 {[%emt 0:01:05]} Rdd7 {[%emt 0:01:23]} 38. Rxc4 {[%emt 0:00:20]} Rxc4 {[%emt 0:00:07]} 39. Rxc4 {[%emt 0:00:04]} b6 {[%emt 0:00:34]} 40. Rc3 {[%emt 0:00:00]} Rd1+ {[%emt 0:00:00]} 41. Kf2 {[%emt 0:03:58]} Rd7 {[%emt 0:03:07]} 42. Ke2 {[%emt 0:03:16]} Kf6 {[%emt 0:02:32]} 43. a5 {[%emt 0:03:04]} bxa5 {[%emt 0:04:44]} 44. bxa5 {[%emt 0:00:03]} Ke7 {[%emt 0:02:03]} 45. a6 {[%emt 0:00:58]} f5 {[%emt 0:00:14]} 46. Rc8 {[%emt 0:04:59]} Rd8 {[%emt 0:00:25]} 47. Rc7+ {[%emt 0:01:11]} Rd7 {[%emt 0:00:16]} 48. Rb7 {[%emt 0:00:02]} Kd6 {[%emt 0:02:28]} 49. Rb8 {[%emt 0:01:32]} Kc7 {[%emt 0:00:24]} 50. Re8 {[%emt 0:00:31]} Kd6 {[%emt 0:01:58]} 51. Bb7 $18 {[%emt 0:00:21]} Kc7 {[%emt 0:02:15]} 52. Rxe6 {[%emt 0:00:23]} 1-0

[Event "Runavik Open 2018"]
[Site "Runavik"]
[Date "2018.11.15"]
[Round "5"]
[White "Berg, Margar M."]
[Black "Markensten, Max"]
[Result "1-0"]
[ECO "D00"]
[WhiteElo "1852"]
[BlackElo "1660"]
[Annotator "NA RC"]
[PlyCount "123"]
[EventDate "2018.11.12"]
[EventType "swiss"]
[EventCountry "FAI"]
[SourceTitle "playchess.com"]
[Source "ChessBase"]
[SourceQuality "1"]
[TimeControl "40/5400+30:900+30"]

{[%evp 22,122,-28,-35,-27,-60,-53,32767,-53,-79,-36,-110,-52,-151,-157,-185,0,0,0,32767,32767,32767,32767,-6,-6,-25,59,4,4,0,0,-25,-11,0,0,0,0,-5,0,15,6,-1,0,0,10,5,349,5,12,3,0,9,0,0,0,0,7,12,12,9,548,544,620,612,553,781,734,698,933,566,609,731,1286,938,1473,543,1401,792,5410,352,597,4943,706,1181,4935,29957,6025,4618,4618,29966,29979,29972,29984,29985,29986,29987,29989,29990,29990,29991,29998,29999,29999]} 1. d4 {[%emt 0:03:07]} d5 {[%emt 0:00:00]} 2. Bg5 {[%emt 0:00:42]} h6 {[%emt 0:00:00]} 3. Bf4 {[%emt 0:00:21]} Nf6 {[%emt 0:00:45] D00: 1 d4 d5: Unusual lines} (3... c5 4. e3 Nc6 5. Nf3 Nf6 6. Nc3 Bg4 7. Be2 e6 8. O-O Be7 9. h3 Bxf3 10. Bxf3 cxd4 11. exd4 {½-½ (55) Nakamura,H (2775)-Sargissian,G (2686) Dubai 2014}) 4. Nf3 {[%emt 0:00:50]} Bf5 {[%emt 0:00:28]} 5. g3 {[%emt 0:00:23]} e6 {[%emt 0:04:50]} 6. Bg2 {[%emt 0:00:26]} Be7 $146 {[%emt 0:01:57]} ({Predecessor:} 6... c5 7. c3 Nc6 8. Ne5 Nxe5 9. dxe5 Nd7 10. c4 Nb6 11. cxd5 exd5 12. O-O Be7 13. Nc3 {0-1 (45) Tran,D (2008)-Pham,M (2025) Ho Chi Minh 2017}) 7. O-O {[%emt 0:00:14]} Nbd7 {[%emt 0:01:06]} 8. c4 {[%emt 0:02:10]} c6 {[%emt 0:02:49]} 9. Nc3 {[%emt 0:00:36]} O-O {[%emt 0:01:25]} 10. a3 {[%emt 0:09:15]} Rc8 {[%emt 0:06:39]} 11. c5 {[%emt 0:05:03]} b6 {[%emt 0:10:42]} 12. b4 {[%emt 0:02:07]} Re8 {[%emt 0:04:07]} 13. Ne5 {[%emt 0:08:34]} Nxe5 {[%emt 0:03:33]} 14. Bxe5 {[%emt 0:09:01]} Nd7 {[%emt 0:07:09]} 15. f4 {[%emt 0:29:35]} f6 {[%emt 0:08:25]} (15... Nxe5 $17 16. fxe5 Bg5) 16. e4 {[%emt 0:00:59]} dxe4 {[%emt 0:06:05]} 17. Nxe4 {[%emt 0:04:22]} (17. Bd6 $15) 17... fxe5 {[%emt 0:03:41]} 18. fxe5 {[%emt 0:00:27]} Nxe5 $2 {[%emt 0:13:44]} ({Black should try} 18... bxc5 $19 19. bxc5 Qa5) 19. dxe5 {[%emt 0:01:44]} Qxd1 {[%emt 0:00:25]} 20. Rfxd1 {[%emt 0:03:07]} Bxe4 {[%emt 0:02:13]} 21. Bxe4 {[%emt 0:00:15]} bxc5 {[%emt 0:01:13]} 22. Kg2 {[%emt 0:01:01]} cxb4 {[%emt 0:03:33]} 23. axb4 {[%emt 0:00:12]} c5 {[%emt 0:04:55]} (23... Rc7 $11) 24. Rxa7 {[%emt 0:01:33]} (24. Rd7 $14) 24... cxb4 {[%emt 0:00:51]} 25. Bg6 {[%emt 0:02:34]} Red8 {[%emt 0:01:21]} 26. Rf1 {[%emt 0:01:39]} Rd2+ {[%emt 0:04:05]} 27. Kh3 {[%emt 0:00:58]} Rf8 {[%emt 0:00:53]} 28. Rc1 {[%emt 0:04:32]} Bd8 {[%emt 0:03:28]} 29. Rb7 {[%emt 0:02:55]} Rd5 {[%emt 0:03:33]} 30. Re1 {[%emt 0:02:20]} Ba5 {[%emt 0:00:26]} 31. Be4 {[%emt 0:01:44]} Rc5 {[%emt 0:00:33]} 32. Bb1 {[%emt 0:00:50]} Rc7 {[%emt 0:00:22]} 33. Rb5 {[%emt 0:00:34]} Ra8 $2 {[%emt 0:00:36]} (33... b3 $11 {and Black has nothing to worry.} 34. Rxa5 b2) 34. Bg6 $2 {[%emt 0:00:11]} ({White must play} 34. Be4 $18 Re8 35. Rxa5) 34... Rd7 {[%emt 0:00:29]} 35. Rc1 {[%emt 0:00:42]} Rd5 {[%emt 0:00:24]} 36. Rxd5 {[%emt 0:02:17]} exd5 {[%emt 0:00:07]} 37. Rd1 {[%emt 0:00:19]} Rd8 {[%emt 0:00:25]} 38. Rf1 {[%emt 0:00:32]} Bc7 {[%emt 0:00:33]} 39. e6 {[%emt 0:00:17]} Bd6 {[%emt 0:00:44]} 40. Rf7 {[%emt 0:00:00]} Re8 $2 {[%emt 0:00:00]} (40... Bc5 $11 {and Black is okay.}) 41. Rd7 {[%emt 0:01:44]} Rxe6 {[%emt 0:10:00]} 42. Bf7+ {[%emt 0:00:29] Double Attack} Kf8 {[%emt 0:00:11]} 43. Bxe6 {[%emt 0:00:10]} Be5 {[%emt 0:00:24]} 44. Rxd5 {[%emt 0:00:20]} Bc3 {[%emt 0:00:16]} 45. Rb5 {[%emt 0:00:18]} Ke7 {[%emt 0:00:22]} 46. Bb3 {[%emt 0:00:17]} Kf6 {[%emt 0:01:43]} 47. Kg4 {[%emt 0:00:16]} Ke7 {[%emt 0:01:19]} 48. Kh5 {[%emt 0:00:16]} Kf6 {[%emt 0:00:24]} 49. Rb6+ {[%emt 0:00:09]} Kf5 {[%emt 0:00:38]} 50. Bc2+ $2 {[%emt 0:00:22]} (50. Rb7 Ke4 51. Kg4) 50... Ke5 {[%emt 0:00:36]} 51. Kg6 {[%emt 0:00:10]} Kd5 {[%emt 0:00:24]} 52. Rb7 {[%emt 0:00:17]} Ke6 {[%emt 0:03:18]} 53. g4 {[%emt 0:01:09]} Kd5 {[%emt 0:00:36]} 54. h4 {[%emt 0:00:22]} Ke6 {[%emt 0:00:50]} 55. h5 {[%emt 0:00:13]} Kd5 {[%emt 0:00:37]} 56. Rxg7 {[%emt 0:00:19]} Bxg7 {[%emt 0:00:06]} 57. Kxg7 {[%emt 0:00:12]} Ke6 {[%emt 0:01:13]} 58. Kxh6 {[%emt 0:00:08]} Kf7 {[%emt 0:00:19]} 59. g5 {[%emt 0:00:10]} Kg8 {[%emt 0:00:29]} 60. g6 {[%emt 0:00:30]} Kh8 {[%emt 0:00:47]} 61. g7+ {[%emt 0:00:09]} Kg8 {[%emt 0:00:09]} 62. Bb3# {[%emt 0:00:05]} 1-0

[Event "Runavik Open 2018"]
[Site "Runavik"]
[Date "2018.11.15"]
[Round "5"]
[White "Skaale, Janus"]
[Black "Nielsen, Jon I Horni"]
[Result "1-0"]
[ECO "C54"]
[WhiteElo "1839"]
[BlackElo "1710"]
[Annotator "NA RC"]
[PlyCount "95"]
[EventDate "2018.11.12"]
[EventType "swiss"]
[EventCountry "FAI"]
[SourceTitle "playchess.com"]
[Source "ChessBase"]
[SourceQuality "1"]
[TimeControl "40/5400+30:900+30"]

{[%evp 14,88,52,32767,32767,32767,32767,59,32767,32767,83,66,79,100,82,38,69,51,60,35,52,32767,67,70,216,141,32767,309,247,164,254,237,275,239,281,260,322,300,308,243,294,262,237,253,410,187,257,267,309,337,403,348,451,444,429,468,456,477,481,32767,32767,32767,32767,661,612,551,646,551,1182,1940,29986,29987,29995,29996,29996,29997,29997]} 1. e4 {[%emt 0:00:00]} e5 {[%emt 0:00:03]} 2. Nf3 {[%emt 0:00:00]} Nc6 {[%emt 0:01:06]} 3. Bc4 {[%emt 0:00:36]} Bc5 {[%emt 0:01:19]} 4. c3 {[%emt 0:00:31]} Nf6 {[%emt 0:01:45]} 5. d3 {[%emt 0:00:50]} d6 {[%emt 0:02:14]} 6. Nbd2 {[%emt 0:01:13]} Bg4 {[%emt 0:04:17] C54: Giuoco Piano: 4 c3 Nf6, main lines with 5 d4 and 5 d3} (6... a6 7. Bb3 h6 8. Nf1 d5 9. exd5 Nxd5 10. Ng3 O-O 11. O-O Re8 12. Re1 Nf6 13. h3 Be6 14. Bc2 Bd5 15. Nh4 {½-½ (43) Duda,J (2739)-Mamedyarov,S (2820) Batumi 2018}) 7. h3 {[%emt 0:00:47]} Bh5 {[%emt 0:01:32]} 8. Nf1 {[%emt 0:03:40]} h6 {[%emt 0:04:14]} 9. Ng3 {[%emt 0:03:55]} Bg6 {[%emt 0:02:56]} 10. O-O {[%emt 0:03:35]} O-O {[%emt 0:03:29]} 11. Re1 {[%emt 0:11:47]} Re8 {[%emt 0:04:18]} 12. a4 {[%emt 0:11:54]} a6 {[%emt 0:05:31]} 13. b4 {[%emt 0:06:35]} Bb6 {[%emt 0:01:16]} 14. Be3 $146 {[%emt 0:01:57]} ({Predecessor:} 14. Qb3 Re7 15. Nh4 Bh7 {1-0 (24) Meric,G (1510)-Gheng,D (1690) Willingen 2015}) 14... Nd7 {[%emt 0:03:10]} 15. a5 {[%emt 0:05:43]} Bxe3 {[%emt 0:01:51]} 16. fxe3 {[%emt 0:00:35]} Nf6 {[%emt 0:02:20]} 17. Qb3 {[%emt 0:02:18]} Qd7 {[%emt 0:02:05]} 18. Nh4 {[%emt 0:02:01]} Ne7 {[%emt 0:03:08]} (18... Kh7 $16) 19. Rf1 {[%emt 0:02:18]} c6 {[%emt 0:02:33]} 20. Nxg6 {[%emt 0:06:55]} Nxg6 {[%emt 0:00:12] [#]} 21. Nh5 {[%emt 0:01:56]} (21. Rxf6 $142 $1 {[%mdl 512]} gxf6 22. Rf1) 21... Qe7 {[%emt 0:04:52]} (21... Rad8 $142 22. Qd1 (22. Nxf6+ gxf6 23. Qd1 d5 $16) (22. Rxf6 d5 $16) 22... d5) 22. Nxf6+ {[%emt 0:03:30]} ({Resist} 22. Rxf6 $6 gxf6 23. Rf1 Rf8) 22... gxf6 {[%emt 0:00:18]} 23. Ra2 {[%emt 0:01:02]} Kg7 {[%emt 0:01:33]} 24. Raf2 {[%emt 0:00:27]} Rf8 {[%emt 0:01:38]} 25. Qd1 {[%emt 0:01:46]} ({But not} 25. Rxf6 $6 Qxf6 26. Rxf6 Kxf6 $18) 25... Rad8 {[%emt 0:04:16]} 26. Qf3 {[%emt 0:04:45]} ({Less strong is} 26. Rxf6 Qxf6 27. Rxf6 Kxf6 $18) 26... d5 {[%emt 0:02:29]} 27. exd5 {[%emt 0:01:02]} cxd5 {[%emt 0:00:58]} 28. Bxd5 {[%emt 0:00:31]} Rd6 $2 {[%emt 0:00:12]} (28... f5 29. d4 (29. Bxb7 e4 $14) 29... f6) 29. Bc4 {[%emt 0:04:54]} (29. c4 $142) 29... Rc8 {[%emt 0:03:39]} 30. Qg4 {[%emt 0:00:57]} Rh8 {[%emt 0:03:22]} 31. Rf5 {[%emt 0:07:09]} Kh7 {[%emt 0:01:55]} 32. Qe4 {[%emt 0:02:03]} Rg8 {[%emt 0:02:01]} 33. h4 {[%emt 0:03:45]} Kg7 {[%emt 0:00:49]} 34. h5 {[%emt 0:00:41]} Nf8 {[%emt 0:00:54]} 35. d4 {[%emt 0:02:37]} Nd7 {[%emt 0:01:22]} 36. dxe5 {[%emt 0:02:05]} Nxe5 {[%emt 0:00:57]} 37. Bxf7 {[%emt 0:00:58]} Nf3+ {[%emt 0:02:17]} 38. Qxf3 {[%emt 0:00:19]} Kxf7 {[%emt 0:00:07]} 39. Qf4 {[%emt 0:00:49]} Kg7 {[%emt 0:00:58]} 40. e4 {[%emt 0:00:00]} Re6 {[%emt 0:00:00]} 41. e5 {[%emt 0:03:22]} Rxe5 {[%emt 0:03:43]} 42. Rxf6 {[%emt 0:00:33]} Kh8 {[%emt 0:00:24]} 43. Rxh6+ {[%emt 0:01:21]} Kg7 {[%emt 0:00:05]} 44. Rg6+ {[%emt 0:00:11]} Kh8 {[%emt 0:00:03]} 45. Qh6+ {[%emt 0:00:13]} Qh7 {[%emt 0:00:07]} 46. Qxh7+ {[%emt 0:00:21]} Kxh7 {[%emt 0:00:06]} 47. Rf7+ {[%emt 0:00:09]} Kh8 {[%emt 0:00:06]} 48. Rh6# {[%emt 0:00:05]} 1-0

[Event "Runavik Open 2018"]
[Site "Runavik"]
[Date "2018.11.15"]
[Round "5"]
[White "Nielsen, Suni I Horni"]
[Black "Pinheiro Diamant, Jonatan"]
[Result "1/2-1/2"]
[ECO "C49"]
[WhiteElo "1563"]
[BlackElo "1789"]
[Annotator "NA RC"]
[PlyCount "111"]
[EventDate "2018.11.12"]
[EventType "swiss"]
[EventCountry "FAI"]
[SourceTitle "playchess.com"]
[Source "ChessBase"]
[SourceQuality "1"]
[TimeControl "40/5400+30:900+30"]

1. e4 {[%emt 0:00:00]} e5 {[%emt 0:00:00]} 2. Nf3 {[%emt 0:00:33]} Nc6 {[%emt 0:00:00]} 3. Nc3 {[%emt 0:02:19]} Nf6 {[%emt 0:00:00]} 4. Bb5 {[%emt 0:01:05]} Bb4 {[%emt 0:09:46]} 5. d3 {[%emt 0:04:38]} Nd4 {[%emt 0:07:02]} 6. Bc4 {[%emt 0:02:41]} d5 {[%emt 0:07:14]} 7. exd5 {[%emt 0:03:23]} Nxd5 {[%emt 0:01:21]} 8. Bd2 {[%emt 0:00:32]} Nxf3+ {[%emt 0:06:03]} 9. Qxf3 {[%emt 0:00:19]} Nf6 {[%emt 0:01:04]} 10. a3 {[%emt 0:01:57]} Be7 {[%emt 0:04:24]} 11. Ne4 {[%emt 0:05:19]} O-O {[%emt 0:00:57]} 12. O-O {[%emt 0:04:17]} c6 {[%emt 0:02:14]} 13. Bc3 {[%emt 0:02:35]} Qc7 {[%emt 0:02:39]} 14. Rfe1 {[%emt 0:02:55]} Nd5 {[%emt 0:07:50]} 15. Bd2 {[%emt 0:08:09]} Be6 {[%emt 0:08:54]} 16. Qg3 {[%emt 0:14:07]} Nf4 {[%emt 0:06:02]} 17. Rad1 {[%emt 0:15:37]} Bxc4 {[%emt 0:03:28]} 18. dxc4 {[%emt 0:02:51]} Ng6 {[%emt 0:01:32]} 19. Bc3 {[%emt 0:03:57]} Rad8 {[%emt 0:02:48]} 20. Rxd8 {[%emt 0:03:35]} Rxd8 {[%emt 0:01:11]} 21. h3 {[%emt 0:01:31]} f5 {[%emt 0:10:14]} 22. Ng5 {[%emt 0:03:53]} Bxg5 {[%emt 0:03:10]} 23. Qxg5 {[%emt 0:00:10]} Rf8 {[%emt 0:00:36]} 24. Qe3 {[%emt 0:03:20]} f4 {[%emt 0:04:05]} 25. Qxa7 {[%emt 0:00:44]} f3 {[%emt 0:00:29]} 26. g3 {[%emt 0:00:08]} Qd7 {[%emt 0:01:25]} 27. Kh2 {[%emt 0:00:17]} Qf5 {[%emt 0:01:37]} 28. Qxb7 {[%emt 0:04:50]} Nf4 {[%emt 0:01:40]} 29. g4 {[%emt 0:00:09]} Qxc2 {[%emt 0:01:34]} 30. Qb6 {[%emt 0:01:55]} Nd3 {[%emt 0:01:05]} 31. Rf1 {[%emt 0:01:47]} c5 {[%emt 0:01:12]} 32. Qe6+ {[%emt 0:01:48]} Rf7 {[%emt 0:00:41]} 33. Qe8+ {[%emt 0:03:29]} Rf8 {[%emt 0:00:03]} 34. Qe6+ {[%emt 0:00:25]} Kh8 {[%emt 0:02:40]} 35. Bxe5 {[%emt 0:00:28]} Nxf2 {[%emt 0:01:19]} 36. Bxg7+ {[%emt 0:01:11]} Kxg7 {[%emt 0:00:05]} 37. Qe5+ {[%emt 0:00:41]} Rf6 {[%emt 0:00:31]} 38. Qg5+ {[%emt 0:00:39]} Kf7 {[%emt 0:00:43]} 39. Qd5+ {[%emt 0:00:24]} Kg6 {[%emt 0:01:07]} 40. Qh5+ {[%emt 0:00:00]} Kg7 {[%emt 0:00:00]} 41. Qg5+ {[%emt 0:01:29]} Kf7 {[%emt 0:05:55]} 42. Qd5+ {[%emt 0:00:43]} Ke8 {[%emt 0:02:43]} 43. Qa8+ {[%emt 0:03:45]} Ke7 {[%emt 0:02:37]} 44. Qb7+ {[%emt 0:00:24]} Kf8 {[%emt 0:00:49]} 45. Qc8+ {[%emt 0:01:15]} Kg7 {[%emt 0:00:57]} 46. Qc7+ {[%emt 0:05:45]} Kg6 {[%emt 0:00:43]} 47. Kg3 {[%emt 0:01:07]} Ne4+ {[%emt 0:01:44]} 48. Kh4 {[%emt 0:00:09]} Qe2 {[%emt 0:02:13]} 49. Qe5 {[%emt 0:02:22]} Qxf1 {[%emt 0:01:15]} 50. Qxe4+ {[%emt 0:00:07]} Kg7 {[%emt 0:00:45]} 51. Qe7+ {[%emt 0:00:27]} Rf7 {[%emt 0:00:27]} 52. Qg5+ {[%emt 0:00:25]} Kh8 {[%emt 0:01:22]} 53. Qd8+ {[%emt 0:00:27]} Kg7 {[%emt 0:00:09]} 54. Qg5+ {[%emt 0:00:08]} Kf8 {[%emt 0:00:58]} 55. Qd8+ {[%emt 0:00:07]} Kg7 {[%emt 0:00:08]} 56. Qg5+ {[%emt 0:00:07]} 1/2-1/2

[Event "Runavik Open 2018"]
[Site "Runavik"]
[Date "2018.11.15"]
[Round "5"]
[White "Fjallheim, Benjamin Reinert"]
[Black "Jacobsen, Markus"]
[Result "1-0"]
[ECO "C02"]
[WhiteElo "1340"]
[BlackElo "1076"]
[Annotator "NA RC"]
[PlyCount "52"]
[EventDate "2018.11.12"]
[EventType "swiss"]
[EventCountry "FAI"]
[SourceTitle "playchess.com"]
[Source "ChessBase"]
[SourceQuality "1"]
[TimeControl "40/5400+30:900+30"]

1. e4 {[%emt 0:02:46]} e6 {[%emt 0:00:00]} 2. d4 {[%emt 0:00:32]} d5 {[%emt 0:00:10]} 3. e5 {[%emt 0:00:37]} c5 {[%emt 0:01:22]} 4. c3 {[%emt 0:04:36]} Nc6 {[%emt 0:01:54]} 5. Nf3 {[%emt 0:00:29]} c4 {[%emt 0:03:30]} 6. Be2 {[%emt 0:02:00]} Nge7 {[%emt 0:02:25]} 7. Nbd2 {[%emt 0:00:46]} g6 {[%emt 0:01:53]} 8. Nf1 {[%emt 0:00:43]} Bg7 {[%emt 0:01:15]} 9. Ng3 {[%emt 0:01:26]} O-O {[%emt 0:01:47]} 10. Bg5 {[%emt 0:06:10]} f6 {[%emt 0:02:41]} 11. exf6 {[%emt 0:01:20]} Bxf6 {[%emt 0:00:45]} 12. Bh6 {[%emt 0:00:56]} Rf7 {[%emt 0:01:21]} 13. h4 {[%emt 0:03:05]} Nf5 {[%emt 0:01:40]} 14. Nxf5 {[%emt 0:00:33]} exf5 {[%emt 0:01:03]} 15. Qd2 {[%emt 0:01:21]} Bg7 {[%emt 0:03:45]} 16. O-O-O {[%emt 0:00:57]} Qf8 {[%emt 0:01:26]} 17. Bxg7 {[%emt 0:01:42]} Rxg7 {[%emt 0:01:49]} 18. Ne5 {[%emt 0:02:01]} Nxe5 {[%emt 0:01:34]} 19. dxe5 {[%emt 0:03:47]} Rd7 {[%emt 0:02:30]} 20. Bf3 {[%emt 0:01:49]} Qe8 {[%emt 0:04:01]} 21. Bxd5+ {[%emt 0:00:57]} Kh8 {[%emt 0:00:31]} 22. Qd4 {[%emt 0:01:07]} h5 {[%emt 0:03:11]} 23. e6+ {[%emt 0:01:06]} Rg7 {[%emt 0:00:25]} 24. Qxc4 {[%emt 0:00:21]} Rb8 {[%emt 0:04:21]} 25. Rhe1 {[%emt 0:01:02]} b5 {[%emt 0:03:19]} 26. Qc6 {[%emt 0:00:45]} Ra8 1-0